[Event "*** Titled Tuesday Blitz"]
[Site "Chess.com"]
[Date "2020.04.07"]
[Round "7"]
[White "Kumi29"]
[Black "Leonid_Starozhilov"]
[Result "0-1"]
[WhiteElo "2439"]
[BlackElo "2666"]
[TimeControl "180+1"]
[EndTime "14:19:26 PDT"]
[Termination "Leonid_Starozhilov won by resignation"]

1. d4 {[%clk 0:03:00.9]} 1... Nf6 {[%clk 0:03:00]} 2. Bg5 {[%clk 0:03:01]} 2...
e6 {[%clk 0:02:58.1]} 3. Nd2 {[%clk 0:03:00.8]} 3... d5 {[%clk 0:02:56.8]} 4. e3
{[%clk 0:03:01.1]} 4... h6 {[%clk 0:02:55.6]} 5. Bh4 {[%clk 0:03:00.9]} 5...
Nbd7 {[%clk 0:02:54.9]} 6. Bd3 {[%clk 0:03:00.8]} 6... Be7 {[%clk 0:02:48]} 7.
c3 {[%clk 0:02:59.5]} 7... e5 {[%clk 0:02:44.1]} 8. dxe5 {[%clk 0:02:42]} 8...
Nxe5 {[%clk 0:02:43.7]} 9. Bc2 {[%clk 0:02:40.7]} 9... c6 {[%clk 0:02:31]} 10.
Ngf3 {[%clk 0:02:39.4]} 10... Bg4 {[%clk 0:02:09.3]} 11. h3 {[%clk 0:02:39.1]}
11... Bxf3 {[%clk 0:02:06.6]} 12. Nxf3 {[%clk 0:02:38.8]} 12... Nc4 {[%clk
0:02:06.9]} 13. b3 {[%clk 0:02:21.4]} 13... Nd6 {[%clk 0:02:06]} 14. O-O {[%clk
0:02:16.1]} 14... O-O {[%clk 0:01:55.8]} 15. Nd4 {[%clk 0:02:12.2]} 15... Nfe4
{[%clk 0:01:48.1]} 16. Bxe7 {[%clk 0:02:08.1]} 16... Qxe7 {[%clk 0:01:49]} 17.
Qd3 {[%clk 0:02:03.4]} 17... g6 {[%clk 0:01:40.2]} 18. a4 {[%clk 0:01:20]} 18...
Rad8 {[%clk 0:01:38.6]} 19. a5 {[%clk 0:01:19.3]} 19... a6 {[%clk 0:01:31.3]}
20. Rad1 {[%clk 0:01:15.8]} 20... Qc7 {[%clk 0:01:15]} 21. b4 {[%clk 0:01:14]}
21... Nc4 {[%clk 0:01:14.5]} 22. Ra1 {[%clk 0:00:24]} 22... Ne5 {[%clk 0:01:10]}
23. Qe2 {[%clk 0:00:22.2]} 23... Nxc3 {[%clk 0:01:04.1]} 24. Qe1 {[%clk
0:00:22.6]} 24... Ne4 {[%clk 0:00:47.5]} 25. f3 {[%clk 0:00:22.8]} 25... Nd6
{[%clk 0:00:40.1]} 26. f4 {[%clk 0:00:23.3]} 26... Nec4 {[%clk 0:00:38.5]} 27.
Qg3 {[%clk 0:00:21.3]} 27... Nd2 {[%clk 0:00:10.9]} 28. Bxg6 {[%clk 0:00:13.7]}
28... fxg6 {[%clk 0:00:10.1]} 29. Qxg6+ {[%clk 0:00:11.2]} 29... Qg7 {[%clk
0:00:10.1]} 30. Qxg7+ {[%clk 0:00:09]} 30... Kxg7 {[%clk 0:00:11]} 31. Ne6+
{[%clk 0:00:09.9]} 31... Kf7 {[%clk 0:00:11.6]} 32. Nxd8+ {[%clk 0:00:10.3]}
32... Rxd8 {[%clk 0:00:12.5]} 33. Rfd1 {[%clk 0:00:10.3]} 33... N2e4 {[%clk
0:00:12.5]} 34. g4 {[%clk 0:00:08.7]} 34... h5 {[%clk 0:00:12.2]} 35. Kg2 {[%clk
0:00:08.5]} 35... Rg8 {[%clk 0:00:10.5]} 36. Kf3 {[%clk 0:00:08.3]} 36... Nc4
{[%clk 0:00:10.4]} 37. Rh1 {[%clk 0:00:07.3]} 37... Ncd2+ {[%clk 0:00:09.4]} 38.
Ke2 {[%clk 0:00:07.8]} 38... Nb3 {[%clk 0:00:07]} 39. Rad1 {[%clk 0:00:07.3]}
39... Ng3+ {[%clk 0:00:06.4]} 40. Kf3 {[%clk 0:00:07]} 40... Nxh1 {[%clk
0:00:06.1]} 41. Rxh1 {[%clk 0:00:07.9]} 41... Nd2+ {[%clk 0:00:06.6]} 42. Ke2
{[%clk 0:00:06.7]} 42... Ne4 {[%clk 0:00:07.2]} 43. g5 {[%clk 0:00:06.6]} 43...
Ng3+ {[%clk 0:00:07.3]} 0-1

[Event "*** Titled Tuesday Blitz"]
[Site "Chess.com"]
[Date "2020.04.07"]
[Round "7"]
[White "Vaathi_Coming"]
[Black "Philosopherrr"]
[Result "1-0"]
[WhiteElo "2850"]
[BlackElo "2438"]
[TimeControl "180+1"]
[EndTime "14:19:30 PDT"]
[Termination "Vaathi_Coming won by resignation"]

1. e4 {[%clk 0:02:56.4]} 1... e5 {[%clk 0:02:59.4]} 2. Nf3 {[%clk 0:02:56.2]}
2... Nc6 {[%clk 0:02:59.9]} 3. Bb5 {[%clk 0:02:56.8]} 3... a6 {[%clk 0:03:00.3]}
4. Ba4 {[%clk 0:02:57.4]} 4... Nf6 {[%clk 0:03:00.8]} 5. O-O {[%clk 0:02:57.8]}
5... Be7 {[%clk 0:02:59.9]} 6. Re1 {[%clk 0:02:53.5]} 6... b5 {[%clk 0:02:59.8]}
7. Bb3 {[%clk 0:02:53.6]} 7... d6 {[%clk 0:03:00.4]} 8. c3 {[%clk 0:02:52.8]}
8... O-O {[%clk 0:03:00.6]} 9. h3 {[%clk 0:02:52.1]} 9... Bb7 {[%clk 0:03:00.1]}
10. d4 {[%clk 0:02:52.3]} 10... Re8 {[%clk 0:03:00.7]} 11. Nbd2 {[%clk
0:02:52.9]} 11... exd4 {[%clk 0:02:59.9]} 12. cxd4 {[%clk 0:02:52.9]} 12... Nd7
{[%clk 0:03:00.8]} 13. Nf1 {[%clk 0:02:51]} 13... Na5 {[%clk 0:03:01]} 14. Bc2
{[%clk 0:02:50.9]} 14... Bf6 {[%clk 0:03:01.5]} 15. Ng3 {[%clk 0:02:51]} 15...
g6 {[%clk 0:03:02]} 16. Rb1 {[%clk 0:02:47]} 16... c5 {[%clk 0:03:01.4]} 17. b3
{[%clk 0:02:46.5]} 17... Nc6 {[%clk 0:03:01.2]} 18. Bb2 {[%clk 0:02:46.3]} 18...
Nb4 {[%clk 0:03:00]} 19. dxc5 {[%clk 0:02:33.4]} 19... Nxc2 {[%clk 0:02:44.2]}
20. Qxc2 {[%clk 0:02:30.4]} 20... Bxb2 {[%clk 0:02:38.2]} 21. c6 {[%clk
0:02:21.6]} 21... Rc8 {[%clk 0:02:15.9]} 22. Qxb2 {[%clk 0:02:19.9]} 22... Bxc6
{[%clk 0:02:14.1]} 23. Rbd1 {[%clk 0:02:19.5]} 23... Nc5 {[%clk 0:02:04.7]} 24.
Qd4 {[%clk 0:02:12.1]} 24... Qe7 {[%clk 0:01:53.9]} 25. Qxd6 {[%clk 0:02:11.6]}
25... Nxe4 {[%clk 0:01:42]} 26. Qxe7 {[%clk 0:01:44.4]} 26... Rxe7 {[%clk
0:01:41.5]} 27. Nd4 {[%clk 0:01:44]} 27... Ba8 {[%clk 0:01:05.6]} 28. f3 {[%clk
0:01:21.8]} 28... Nc3 {[%clk 0:01:04.6]} 29. Rxe7 {[%clk 0:01:21.5]} 29... Nxd1
{[%clk 0:01:04.7]} 30. Nge2 {[%clk 0:01:21.6]} 30... b4 {[%clk 0:01:00.5]} 31.
Ra7 {[%clk 0:01:14.6]} 31... Kg7 {[%clk 0:00:59.2]} 32. Rxa6 {[%clk 0:01:10.6]}
32... Nc3 {[%clk 0:00:57.9]} 33. Kf2 {[%clk 0:01:00.7]} 33... Bd5 {[%clk
0:00:54.8]} 34. Nf4 {[%clk 0:00:57.9]} 34... Rd8 {[%clk 0:00:51.1]} 35. Ra7
{[%clk 0:00:54.1]} 35... Kf6 {[%clk 0:00:47.9]} 36. Ra6+ {[%clk 0:00:46.8]}
36... Kg7 {[%clk 0:00:47.5]} 37. Kg3 {[%clk 0:00:33.3]} 37... h5 {[%clk
0:00:43.4]} 38. h4 {[%clk 0:00:31.1]} 38... Rd7 {[%clk 0:00:41.7]} 39. Nde2
{[%clk 0:00:20.7]} 39... Bb7 {[%clk 0:00:27.1]} 40. Ra7 {[%clk 0:00:18.6]} 40...
Nxe2+ {[%clk 0:00:23.8]} 41. Nxe2 {[%clk 0:00:19.5]} 41... Rd2 {[%clk
0:00:24.1]} 42. Nf4 {[%clk 0:00:14.5]} 42... Bc6 {[%clk 0:00:20.6]} 43. Ne6+
{[%clk 0:00:12.6]} 43... Kf6 {[%clk 0:00:20.6]} 44. Ng5 {[%clk 0:00:12.7]} 44...
Bd5 {[%clk 0:00:20.5]} 45. Rd7 {[%clk 0:00:12.6]} 45... Ke5 {[%clk 0:00:11.8]}
46. f4+ {[%clk 0:00:08]} 46... Kd4 {[%clk 0:00:11.9]} 47. Nf3+ {[%clk
0:00:07.9]} 1-0

[Event "*** Titled Tuesday Blitz"]
[Site "Chess.com"]
[Date "2020.04.07"]
[Round "7"]
[White "Rud_Makarian"]
[Black "Tjktiger"]
[Result "0-1"]
[WhiteElo "2620"]
[BlackElo "2858"]
[TimeControl "180+1"]
[EndTime "14:19:37 PDT"]
[Termination "Tjktiger won by resignation"]

1. d4 {[%clk 0:02:57.1]} 1... Nf6 {[%clk 0:03:00]} 2. c4 {[%clk 0:02:56.6]} 2...
g6 {[%clk 0:03:00.3]} 3. Nc3 {[%clk 0:02:56.2]} 3... d5 {[%clk 0:03:00.8]} 4.
Bf4 {[%clk 0:02:55.7]} 4... Bg7 {[%clk 0:03:00]} 5. e3 {[%clk 0:02:56]} 5... Be6
{[%clk 0:02:59.9]} 6. c5 {[%clk 0:02:52.6]} 6... O-O {[%clk 0:02:58.5]} 7. Bd3
{[%clk 0:02:52.2]} 7... c6 {[%clk 0:02:58.3]} 8. h3 {[%clk 0:02:48.3]} 8... b6
{[%clk 0:02:57.2]} 9. b4 {[%clk 0:02:43.3]} 9... Bc8 {[%clk 0:02:54.6]} 10. Nf3
{[%clk 0:02:41.5]} 10... a5 {[%clk 0:02:48.4]} 11. a3 {[%clk 0:02:24.1]} 11...
Na6 {[%clk 0:02:45.2]} 12. b5 {[%clk 0:02:00.7]} 12... cxb5 {[%clk 0:02:44.2]}
13. c6 {[%clk 0:01:56.8]} 13... b4 {[%clk 0:02:41.1]} 14. Nb5 {[%clk 0:01:55.5]}
14... Ne4 {[%clk 0:02:35.1]} 15. O-O {[%clk 0:01:47.7]} 15... Nd6 {[%clk
0:02:31.6]} 16. Bxd6 {[%clk 0:01:32.3]} 16... exd6 {[%clk 0:02:32.5]} 17. Qb3
{[%clk 0:01:24.6]} 17... Be6 {[%clk 0:02:32.4]} 18. Rfc1 {[%clk 0:01:24.4]}
18... Qe7 {[%clk 0:02:22.8]} 19. Bf1 {[%clk 0:01:13.5]} 19... f5 {[%clk
0:02:21.6]} 20. Ne1 {[%clk 0:00:54.6]} 20... f4 {[%clk 0:02:20.5]} 21. exf4
{[%clk 0:00:54.6]} 21... Rxf4 {[%clk 0:02:18.6]} 22. Nd3 {[%clk 0:00:54.8]}
22... Rxd4 {[%clk 0:02:12.7]} 23. Nxd4 {[%clk 0:00:54.3]} 23... Bxd4 {[%clk
0:02:13.6]} 24. axb4 {[%clk 0:00:54.2]} 24... Bxa1 {[%clk 0:02:07.3]} 25. Rxa1
{[%clk 0:00:54.2]} 25... Qf6 {[%clk 0:01:51.7]} 26. Re1 {[%clk 0:00:50.4]} 26...
Nc7 {[%clk 0:01:25.8]} 27. bxa5 {[%clk 0:00:47.3]} 27... bxa5 {[%clk 0:01:26.7]}
28. Qb6 {[%clk 0:00:44.5]} 28... Qd8 {[%clk 0:01:25.3]} 29. Nf4 {[%clk
0:00:41.6]} 29... Bf7 {[%clk 0:01:25.3]} 30. g3 {[%clk 0:00:34.5]} 30... a4
{[%clk 0:01:18.8]} 31. Ra1 {[%clk 0:00:31.3]} 31... a3 {[%clk 0:01:18.5]} 32.
Qb3 {[%clk 0:00:19.3]} 32... d4 {[%clk 0:01:16.2]} 33. Bc4 {[%clk 0:00:19.7]}
33... d5 {[%clk 0:01:16]} 34. Bf1 {[%clk 0:00:17.1]} 34... Qd6 {[%clk
0:01:16.1]} 35. Qb6 {[%clk 0:00:13.8]} 35... Qe5 {[%clk 0:01:00.5]} 36. Nd3
{[%clk 0:00:13]} 36... Qd6 {[%clk 0:00:58.4]} 37. Nf4 {[%clk 0:00:13.3]} 37...
a2 {[%clk 0:00:57.8]} 38. h4 {[%clk 0:00:12.7]} 38... d3 {[%clk 0:00:52.4]} 39.
Nxd3 {[%clk 0:00:11.8]} 39... Qf6 {[%clk 0:00:50.9]} 40. Qb2 {[%clk 0:00:10.4]}
40... Qxb2 {[%clk 0:00:36.8]} 41. Nxb2 {[%clk 0:00:11.3]} 41... Kf8 {[%clk
0:00:30.8]} 42. Nd3 {[%clk 0:00:10.5]} 42... Ke7 {[%clk 0:00:28.5]} 43. Nb4
{[%clk 0:00:09.7]} 43... d4 {[%clk 0:00:28.4]} 44. Nc2 {[%clk 0:00:09.4]} 44...
Rb8 {[%clk 0:00:26.6]} 45. Nxd4 {[%clk 0:00:07.2]} 45... Rb1 {[%clk 0:00:26.8]}
46. Nc2 {[%clk 0:00:07.2]} 46... Bc4 {[%clk 0:00:24.5]} 47. Kh2 {[%clk
0:00:05.6]} 47... Rxf1 {[%clk 0:00:22.7]} 48. Ne1 {[%clk 0:00:02.1]} 48... Rxf2+
{[%clk 0:00:21.9]} 49. Kg1 {[%clk 0:00:02.1]} 49... Rb2 {[%clk 0:00:20.1]} 50.
Rc1 {[%clk 0:00:01.2]} 50... Rb1 {[%clk 0:00:19.4]} 0-1

[Event "*** Titled Tuesday Blitz"]
[Site "Chess.com"]
[Date "2020.04.07"]
[Round "7"]
[White "FeketeBarika"]
[Black "swayamsm"]
[Result "0-1"]
[WhiteElo "2289"]
[BlackElo "2592"]
[TimeControl "180+1"]
[EndTime "14:19:37 PDT"]
[Termination "swayamsm won by resignation"]

1. Nf3 {[%clk 0:03:00.9]} 1... Nf6 {[%clk 0:02:57.8]} 2. g3 {[%clk 0:03:01.8]}
2... g6 {[%clk 0:02:57.2]} 3. Bg2 {[%clk 0:03:02.7]} 3... Bg7 {[%clk 0:02:57.6]}
4. O-O {[%clk 0:03:03.6]} 4... O-O {[%clk 0:02:58.1]} 5. c4 {[%clk 0:03:04.2]}
5... c5 {[%clk 0:02:58.3]} 6. Nc3 {[%clk 0:03:04.6]} 6... Nc6 {[%clk 0:02:57.9]}
7. d3 {[%clk 0:03:04.1]} 7... d6 {[%clk 0:02:53.7]} 8. a3 {[%clk 0:03:04.1]}
8... Be6 {[%clk 0:02:45.8]} 9. Rb1 {[%clk 0:03:03.1]} 9... a5 {[%clk 0:02:44.6]}
10. Ne1 {[%clk 0:03:01.7]} 10... Qd7 {[%clk 0:02:43.7]} 11. Nc2 {[%clk
0:02:59.2]} 11... Bh3 {[%clk 0:02:43.5]} 12. b4 {[%clk 0:02:57.8]} 12... axb4
{[%clk 0:02:43]} 13. axb4 {[%clk 0:02:58.7]} 13... Bxg2 {[%clk 0:02:41.2]} 14.
Kxg2 {[%clk 0:02:58.5]} 14... b6 {[%clk 0:02:38]} 15. b5 {[%clk 0:02:47.2]}
15... Nd8 {[%clk 0:02:29.4]} 16. Bd2 {[%clk 0:02:46.3]} 16... Ne6 {[%clk
0:02:29.3]} 17. h4 {[%clk 0:02:41.9]} 17... d5 {[%clk 0:02:24.6]} 18. cxd5
{[%clk 0:02:35]} 18... Nxd5 {[%clk 0:02:25.5]} 19. Nxd5 {[%clk 0:02:30.8]} 19...
Qxd5+ {[%clk 0:02:26.4]} 20. Kh2 {[%clk 0:02:29.7]} 20... Ra2 {[%clk 0:02:14.5]}
21. Ne3 {[%clk 0:02:28.5]} 21... Qd4 {[%clk 0:02:04.9]} 22. Nc4 {[%clk
0:02:27.5]} 22... Rb8 {[%clk 0:01:40.7]} 23. Qb3 {[%clk 0:02:22.1]} 23... Ra7
{[%clk 0:01:37.4]} 24. Be3 {[%clk 0:02:19.2]} 24... Qd8 {[%clk 0:01:31.9]} 25.
Qc2 {[%clk 0:02:09]} 25... Rba8 {[%clk 0:01:31.4]} 26. Qc1 {[%clk 0:01:57.9]}
26... Ra2 {[%clk 0:01:26.3]} 27. Re1 {[%clk 0:01:57.2]} 27... Qc7 {[%clk
0:01:19.2]} 28. Bh6 {[%clk 0:01:52.7]} 28... Bf6 {[%clk 0:01:16.9]} 29. Qe3
{[%clk 0:01:49]} 29... Bxh4 {[%clk 0:01:08.8]} 30. Bf4 {[%clk 0:01:24.4]} 30...
Nxf4 {[%clk 0:01:06.2]} 31. Qxf4 {[%clk 0:01:20.6]} 31... Qxf4 {[%clk
0:01:03.2]} 32. gxf4 {[%clk 0:01:21.5]} 32... Bxf2 {[%clk 0:01:02.7]} 33. Rf1
{[%clk 0:01:11.7]} 33... Rxe2 {[%clk 0:00:57.1]} 34. Kg2 {[%clk 0:01:11.5]}
34... Raa2 {[%clk 0:00:41.5]} 35. Kf3 {[%clk 0:01:11.5]} 35... f5 {[%clk
0:00:36.4]} 36. Ra1 {[%clk 0:01:09.5]} 36... Rac2 {[%clk 0:00:34.9]} 37. Rac1
{[%clk 0:01:08.1]} 37... Ra2 {[%clk 0:00:26.5]} 38. Ra1 {[%clk 0:01:07.5]} 38...
Rac2 {[%clk 0:00:25.5]} 39. Rac1 {[%clk 0:01:06.1]} 39... Bd4 {[%clk 0:00:24.6]}
40. Rxc2 {[%clk 0:01:04.4]} 40... Rxc2 {[%clk 0:00:25.5]} 41. Nxb6 {[%clk
0:01:03.9]} 41... Rb2 {[%clk 0:00:25.2]} 42. Nd5 {[%clk 0:01:01.9]} 42... e6
{[%clk 0:00:22.9]} 43. Nc7 {[%clk 0:01:00.6]} 43... Kf7 {[%clk 0:00:23.2]} 44.
Re1 {[%clk 0:00:59.3]} 44... Rf2+ {[%clk 0:00:17.8]} 45. Kg3 {[%clk 0:00:59.4]}
45... Rb2 {[%clk 0:00:16.5]} 46. Kh3 {[%clk 0:00:59.1]} 46... h6 {[%clk
0:00:13.6]} 47. Rxe6 {[%clk 0:00:55.5]} 47... g5 {[%clk 0:00:14.1]} 48. fxg5
{[%clk 0:00:54]} 48... hxg5 {[%clk 0:00:13.7]} 49. b6 {[%clk 0:00:33]} 49... Bf2
{[%clk 0:00:11.2]} 50. Rc6 {[%clk 0:00:28.5]} 50... g4+ {[%clk 0:00:10.1]} 51.
Kg2 {[%clk 0:00:28.2]} 51... c4 {[%clk 0:00:09.7]} 52. dxc4 {[%clk 0:00:25.3]}
52... Bxb6+ {[%clk 0:00:10.1]} 53. Kf1 {[%clk 0:00:25.2]} 53... Bxc7 {[%clk
0:00:09.7]} 54. Rxc7+ {[%clk 0:00:24.9]} 54... Ke6 {[%clk 0:00:10.6]} 55. Rc6+
{[%clk 0:00:24.9]} 55... Ke5 {[%clk 0:00:10.6]} 56. Rc8 {[%clk 0:00:24.5]} 56...
Kf4 {[%clk 0:00:09.9]} 57. c5 {[%clk 0:00:23.9]} 57... Kf3 {[%clk 0:00:10.4]}
58. Ke1 {[%clk 0:00:23.9]} 58... Rc2 {[%clk 0:00:10.2]} 59. c6 {[%clk 0:00:23]}
59... f4 {[%clk 0:00:10.6]} 60. c7 {[%clk 0:00:23]} 60... g3 {[%clk 0:00:10.7]}
61. Kd1 {[%clk 0:00:22.8]} 61... Rc6 {[%clk 0:00:10.7]} 0-1

[Event "*** Titled Tuesday Blitz"]
[Site "Chess.com"]
[Date "2020.04.07"]
[Round "7"]
[White "Jeffinho023"]
[Black "Schachspielerr"]
[Result "1-0"]
[WhiteElo "2465"]
[BlackElo "2685"]
[TimeControl "180+1"]
[EndTime "14:19:37 PDT"]
[Termination "Jeffinho023 won by resignation"]

1. d4 {[%clk 0:03:00.9]} 1... Nf6 {[%clk 0:02:55.3]} 2. Nf3 {[%clk 0:03:00.2]}
2... e6 {[%clk 0:02:56.2]} 3. g3 {[%clk 0:03:00]} 3... b6 {[%clk 0:02:53.3]} 4.
Bg2 {[%clk 0:03:00.2]} 4... Bb7 {[%clk 0:02:54.2]} 5. O-O {[%clk 0:03:00.8]}
5... Be7 {[%clk 0:02:54.4]} 6. c4 {[%clk 0:03:01.1]} 6... O-O {[%clk 0:02:55]}
7. Nc3 {[%clk 0:03:01.5]} 7... d5 {[%clk 0:02:53.8]} 8. Ne5 {[%clk 0:03:00.5]}
8... Nbd7 {[%clk 0:02:52.5]} 9. Bg5 {[%clk 0:02:59.7]} 9... h6 {[%clk
0:02:49.2]} 10. Bf4 {[%clk 0:02:53.5]} 10... c5 {[%clk 0:02:43.6]} 11. Nxd7
{[%clk 0:02:23.3]} 11... Qxd7 {[%clk 0:02:44.5]} 12. dxc5 {[%clk 0:02:13.9]}
12... Bxc5 {[%clk 0:02:35.1]} 13. Be5 {[%clk 0:02:11]} 13... Ng4 {[%clk
0:02:00]} 14. Bd4 {[%clk 0:02:02.7]} 14... Bxd4 {[%clk 0:01:59.8]} 15. Qxd4
{[%clk 0:01:54.9]} 15... e5 {[%clk 0:02:00.2]} 16. Qd1 {[%clk 0:01:29.2]} 16...
d4 {[%clk 0:02:00]} 17. Bxb7 {[%clk 0:01:27.6]} 17... Qxb7 {[%clk 0:02:00.9]}
18. Nd5 {[%clk 0:01:27.5]} 18... Rac8 {[%clk 0:01:55]} 19. b3 {[%clk 0:01:24.7]}
19... Rc6 {[%clk 0:01:52.8]} 20. e3 {[%clk 0:01:23.1]} 20... Nf6 {[%clk
0:01:40.3]} 21. Nxf6+ {[%clk 0:01:17.3]} 21... Rxf6 {[%clk 0:01:41.2]} 22. exd4
{[%clk 0:01:17.8]} 22... exd4 {[%clk 0:01:39.5]} 23. Qxd4 {[%clk 0:01:16.9]}
23... Qf3 {[%clk 0:01:36.6]} 24. Rfe1 {[%clk 0:01:09.1]} 24... h5 {[%clk
0:01:35.2]} 25. Qe3 {[%clk 0:01:08.8]} 25... Qf5 {[%clk 0:01:34.9]} 26. h4
{[%clk 0:01:04.2]} 26... g6 {[%clk 0:01:09.2]} 27. Rad1 {[%clk 0:00:58.5]} 27...
Kh7 {[%clk 0:01:07.7]} 28. Rd4 {[%clk 0:00:29.7]} 28... Re6 {[%clk 0:00:56.3]}
29. Re4 {[%clk 0:00:27.3]} 29... Rfe8 {[%clk 0:00:32]} 30. Rxe6 {[%clk 0:00:27]}
30... Rxe6 {[%clk 0:00:32.9]} 31. Qd2 {[%clk 0:00:27.4]} 31... Rxe1+ {[%clk
0:00:26.1]} 32. Qxe1 {[%clk 0:00:28.3]} 32... Kg7 {[%clk 0:00:27]} 33. Qd2
{[%clk 0:00:23.1]} 33... Qe4 {[%clk 0:00:24.2]} 34. Kh2 {[%clk 0:00:22.1]} 34...
a5 {[%clk 0:00:22.8]} 35. a3 {[%clk 0:00:20.6]} 35... Qf3 {[%clk 0:00:21]} 36.
Qb2+ {[%clk 0:00:18.9]} 36... Kg8 {[%clk 0:00:21.5]} 37. b4 {[%clk 0:00:19.8]}
37... axb4 {[%clk 0:00:19]} 38. axb4 {[%clk 0:00:20.7]} 38... Qd3 {[%clk
0:00:17.2]} 39. Qc1 {[%clk 0:00:20.8]} 39... Qd4 {[%clk 0:00:13.2]} 40. Kg1
{[%clk 0:00:20.4]} 40... Kg7 {[%clk 0:00:10.4]} 41. c5 {[%clk 0:00:20.6]} 41...
Qxb4 {[%clk 0:00:08.8]} 42. c6 {[%clk 0:00:21]} 42... Qf8 {[%clk 0:00:09]} 43.
c7 {[%clk 0:00:21.3]} 43... Qc8 {[%clk 0:00:09.5]} 44. Qc6 {[%clk 0:00:21.2]}
44... Kf8 {[%clk 0:00:08.7]} 45. Qxb6 {[%clk 0:00:20.5]} 45... Ke7 {[%clk
0:00:09.3]} 46. Qc6 {[%clk 0:00:20.6]} 46... f6 {[%clk 0:00:06.8]} 47. Kg2
{[%clk 0:00:21]} 47... g5 {[%clk 0:00:06.6]} 48. hxg5 {[%clk 0:00:21]} 48...
fxg5 {[%clk 0:00:07.5]} 49. Qc5+ {[%clk 0:00:21.2]} 49... Kd7 {[%clk 0:00:06.4]}
50. Qxg5 {[%clk 0:00:20.2]} 50... Qb7+ {[%clk 0:00:05.9]} 51. Kg1 {[%clk
0:00:20.3]} 51... Qb1+ {[%clk 0:00:05.4]} 52. Kh2 {[%clk 0:00:20.2]} 52... Kxc7
{[%clk 0:00:05.4]} 53. Qxh5 {[%clk 0:00:20.4]} 53... Kd6 {[%clk 0:00:05.4]} 54.
Qf3 {[%clk 0:00:20.2]} 54... Ke6 {[%clk 0:00:05.4]} 55. Kg2 {[%clk 0:00:21.1]}
55... Ke7 {[%clk 0:00:05.5]} 56. g4 {[%clk 0:00:20.8]} 56... Qc1 {[%clk
0:00:05.5]} 57. Qe3+ {[%clk 0:00:20.1]} 57... Qxe3 {[%clk 0:00:03.5]} 58. fxe3
{[%clk 0:00:21]} 1-0

[Event "*** Titled Tuesday Blitz"]
[Site "Chess.com"]
[Date "2020.04.07"]
[Round "7"]
[White "ChesterF"]
[Black "BvsN"]
[Result "1-0"]
[WhiteElo "2491"]
[BlackElo "2312"]
[TimeControl "180+1"]
[EndTime "14:19:37 PDT"]
[Termination "ChesterF won on time"]

1. d4 {[%clk 0:02:59.9]} 1... d5 {[%clk 0:02:59.7]} 2. c4 {[%clk 0:02:59.7]}
2... c6 {[%clk 0:03:00.1]} 3. Nc3 {[%clk 0:02:59.4]} 3... Nf6 {[%clk 0:02:59.3]}
4. Nf3 {[%clk 0:02:58.9]} 4... e6 {[%clk 0:02:59.8]} 5. Bg5 {[%clk 0:02:58.3]}
5... Be7 {[%clk 0:02:59.8]} 6. e3 {[%clk 0:02:58.3]} 6... O-O {[%clk 0:02:59.2]}
7. Qc2 {[%clk 0:02:58]} 7... Nbd7 {[%clk 0:02:59.1]} 8. O-O-O {[%clk 0:02:45.9]}
8... Nb6 {[%clk 0:02:53.2]} 9. cxd5 {[%clk 0:02:37.8]} 9... Nbxd5 {[%clk
0:02:48.9]} 10. Kb1 {[%clk 0:02:34.8]} 10... b6 {[%clk 0:02:44.4]} 11. Bxf6
{[%clk 0:02:14.7]} 11... Bxf6 {[%clk 0:02:41.5]} 12. e4 {[%clk 0:02:14.4]} 12...
Nxc3+ {[%clk 0:02:36.1]} 13. Qxc3 {[%clk 0:02:13.6]} 13... c5 {[%clk 0:02:35]}
14. e5 {[%clk 0:02:06.7]} 14... Be7 {[%clk 0:02:35]} 15. Bd3 {[%clk 0:02:06.8]}
15... cxd4 {[%clk 0:02:27.9]} 16. Nxd4 {[%clk 0:02:02.8]} 16... Bb7 {[%clk
0:02:28.1]} 17. Nc6 {[%clk 0:02:00]} 17... Bxc6 {[%clk 0:01:55.7]} 18. Qxc6
{[%clk 0:01:59.4]} 18... Qc8 {[%clk 0:01:36.1]} 19. Qe4 {[%clk 0:01:54.3]} 19...
g6 {[%clk 0:01:36.2]} 20. Rc1 {[%clk 0:01:44.6]} 20... Qd8 {[%clk 0:01:34.5]}
21. h4 {[%clk 0:01:35.5]} 21... Rc8 {[%clk 0:01:34.3]} 22. Rxc8 {[%clk
0:01:29.2]} 22... Qxc8 {[%clk 0:01:34.5]} 23. h5 {[%clk 0:01:29.6]} 23... Qa8
{[%clk 0:01:12.6]} 24. hxg6 {[%clk 0:01:01.9]} 24... Qxe4 {[%clk 0:00:54.5]} 25.
gxh7+ {[%clk 0:01:00.7]} 25... Qxh7 {[%clk 0:00:47.6]} 26. Bxh7+ {[%clk
0:01:00.7]} 26... Kg7 {[%clk 0:00:47]} 27. Be4 {[%clk 0:00:36]} 27... Rh8 {[%clk
0:00:42.1]} 28. Rc1 {[%clk 0:00:24.9]} 28... Bc5 {[%clk 0:00:41.9]} 29. Rd1
{[%clk 0:00:08.2]} 29... Bxf2 {[%clk 0:00:37.4]} 30. Rd7 {[%clk 0:00:08.6]}
30... a5 {[%clk 0:00:36.2]} 31. Kc2 {[%clk 0:00:06]} 31... Rc8+ {[%clk
0:00:34.3]} 32. Kd3 {[%clk 0:00:05.7]} 32... Bg3 {[%clk 0:00:30.2]} 33. Rb7
{[%clk 0:00:05.4]} 33... Bf2 {[%clk 0:00:23.6]} 34. g4 {[%clk 0:00:05]} 34...
Rd8+ {[%clk 0:00:22.2]} 35. Ke2 {[%clk 0:00:04.9]} 35... Bd4 {[%clk 0:00:21.3]}
36. g5 {[%clk 0:00:05.3]} 36... Kf8 {[%clk 0:00:12.2]} 37. b3 {[%clk 0:00:03.6]}
37... Rc8 {[%clk 0:00:09.8]} 38. g6 {[%clk 0:00:02.4]} 38... fxg6 {[%clk
0:00:09.5]} 39. Bxg6 {[%clk 0:00:03.3]} 39... Bxe5 {[%clk 0:00:08.4]} 40. Rxb6
{[%clk 0:00:03.3]} 40... Ke7 {[%clk 0:00:07.2]} 41. Be4 {[%clk 0:00:03.8]} 41...
Rd8 {[%clk 0:00:06.2]} 42. Rb5 {[%clk 0:00:04.3]} 42... Bf6 {[%clk 0:00:05.8]}
43. Rxa5 {[%clk 0:00:04.2]} 43... Rd7 {[%clk 0:00:04]} 44. Rb5 {[%clk
0:00:04.4]} 44... Ra7 {[%clk 0:00:02.6]} 45. a4 {[%clk 0:00:04.6]} 45... Kd7
{[%clk 0:00:02.5]} 46. Bd3 {[%clk 0:00:05.1]} 46... Be7 {[%clk 0:00:02.3]} 47.
Bc4 {[%clk 0:00:05.2]} 1-0